Cogmind - Beta 16 @@@ ROGUE MODE // 2025.10.27 @ 12:28:32 Player: Moodge Result: Destroyed by Y-45 Defender with Beam Rifle Performance ------------- Evolutions (1) 500 Regions Visited (2) 400 Robots Destroyed (29) 145 Value Destroyed (843) 843 Prototype IDs (2) 40 Alien Tech Used (0) 0 Bonus (0) 0 TOTAL SCORE: 1928 Bonus ------- None Cogmind --------- Core Integrity 0/400 Matter 267/300 Energy 7/100 System Corruption 1% Temperature Cool (65) Movement Walking (120) Location -9/Materials Parts ------- > --- POWER (1) -------- (None) > --- PROPULSION (4) --- Aluminum Leg > --- UTILITY (2) ------ (None) > --- WEAPON (2) ------- Small Laser Heavy Assault Rifle > --- INVENTORY (5) ---- Light Ion Engine Small Storage Unit Weight Redist. System Improved Targeting Computer Peak State ------------ > --- POWER ------------ Heavy Ion Engine > --- PROPULSION ------- Aluminum Leg Aluminum Leg Aluminum Leg Improved Aluminum Leg > --- UTILITY ---------- Visual Processing Unit Signal Interpreter > --- WEAPON ----------- Improved Medium Laser Light Assault Rifle > --- INVENTORY -------- Light Ion Engine Improved Heat Sink Small Storage Unit Weight Redist. System [Rating: 15] Favorites ----------- Power Light Ion Engine Engine Light Ion Engine Propulsion Aluminum Leg Leg Aluminum Leg Utility Signal Interpreter Device Sensor Array Storage Small Storage Unit Processor Signal Interpreter Weapon Light Assault Rifle Energy Gun Medium Laser Ballistic Gun Light Assault Rifle Build | -11 -10 -9 ------- Run | Yrd Mat Mat Slots Evolved 2 | . . 2 Power . | . . . Propulsion 2 | . . 2 Utility . | . . . Weapon . | . . . Parts Attached 29 | 6 6 17 Power 5 | 1 1 3 Engine 5 | 1 1 3 Core . | . . . Reactor . | . . . Propulsion 11 | 2 2 7 Treads . | . . . Leg 11 | 2 2 7 Wheel . | . . . Hover . | . . . Flight . | . . . Utility 4 | 1 2 1 Device 1 | . . 1 Storage 1 | 1 . . Processor 2 | . 2 . Hackware . | . . . Protection . | . . . Artifact . | . . . Weapon 9 | 2 1 6 Energy Gun 5 | 1 . 4 Energy Cannon . | . . . Ballistic Gun 4 | 1 1 2 Ballistic Cannon . | . . . Launcher . | . . . Special Weapon . | . . . Impact Weapon . | . . . Slashing Weapon . | . . . Piercing Weapon . | . . . Special Melee Weapon . | . . . Unidentified Prototypes 2 | . . 2 Parts Lost 17 | . 4 13 Power 2 | . 1 1 Propulsion 8 | . 2 6 Utility 2 | . . 2 Weapon 5 | . 1 4 Highest Loss Streak 9 | . 4 9 To Critical Strikes . | . . . Average Backups 3 | 2 2 4 Power . | . . . Propulsion . | . . . Utility 2 | . . 3 Weapon . | . . . Tool/Special . | . . . Unused Backups 5 | . . 5 Power 2 | . . 2 Propulsion . | . . . Utility 3 | . . 3 Weapon . | . . . Tool/Special . | . . . Average Slot Usage (%) 88 | . 94 84 Engine 11 | . 13 10 Leg 31 | . 25 34 Storage 4 | . 12 . Processor 17 | . 14 19 Energy Gun 11 | . 14 10 Ballistic Gun 10 | . 14 8 Peak Build Rating 15 | 6 8 15 Average Rating 8 | 2 6 10 On Entrance 4 | . 6 8 Avg Prop Armor Cover (%) . | . . . Naked Turns 3 | . . 3 Heaviest Build 14 | 13 13 14 Greatest Support 43 | 20 20 43 Greatest Overweight (x) 2 | 1 2 . Average Overweight (x) . | . . . Largest Inventory Capacity 8 | 8 8 5 Average Capacity 6 | 7 7 5 Most Carried 7 | 7 5 5 Average Carried 3 | 2 2 4 Final Capacity 8 | 8 5 5 Final Carried 5 | 2 5 4 Class Distribution -------------------- 51% | Scavenger-Mutant 48% | Mutant Dominant Class ---------------- Mutant | -10/Materials Scavenger-Mutant | -9/Materials Resources | -11 -10 -9 ----------- Run | Yrd Mat Mat Matter Collected 546 | 216 131 199 Remotely . | . . . Salvage Created 1038 | . 274 764 Parts 54 | . 11 43 Haulers Intercepted . | . . . Recyclers Shooed . | . . . Parts Field Recycled . | . . . Retrieved Matter . | . . . Parts Self-Destructed . | . . . Prevented . | . . . Parts Restored . | . . . Kills | -11 -10 -9 ------- Run | Yrd Mat Mat Combat Hostiles Destroyed 27 | . 5 22 Guns 27 | . 5 22 Classes Destroyed 5 | . 2 3 Watcher 2 | . 2 . Swarmer 7 | . . 7 Grunt 16 | . 5 11 Brawler 1 | . . 1 Sentry 3 | . . 3 Best Kill Streak 7 | . 3 7 Combat Bots Only 7 | . 3 7 Max Kills in Single Turn 1 | . 1 1 Gunslinging . | . . . Exploded . | . . . Melee . | . . . Uniques/NPCs Destroyed . | . . . Combat | -11 -10 -9 -------- Run | Yrd Mat Mat Hostile Shots Fired 239 | . 56 183 Missed 60 | . 10 50 Hits 179 | . 46 133 Melee 3 | . . 3 Projectile 176 | . 46 130 Critical Strikes 1 | . . 1 Damage Taken 2074 | . 601 1473 Core 556 | . 143 413 Absorbed by Shields . | . . . Core Remaining (%) 71 | 100 42 . Volleys Fired 132 | . 56 76 Largest 2 | . 2 2 Hottest 79 | . 70 79 Shots Fired 200 | . 78 122 Gun 200 | . 78 122 Cannon . | . . . Launcher . | . . . Special . | . . . Kinetic 93 | . 47 46 Thermal 107 | . 31 76 Explosive . | . . . Electromagnetic . | . . . Robot Hit Streak 13 | . 7 13 Robot Miss Streak 4 | . 4 3 Penetration Max . | . . . Secondary Targets 2 | . . 2 Max Gunslinging Chain 1 | . . 1 Shots Hit Robots 140 | . 49 91 Core Hits 50 | . 16 34 Critical Kills . | . . . Critical Parts Destroyed 1 | . . 1 Critical Strikes 11 | . 3 8 Burn 10 | . 3 7 Destroy 1 | . . 1 Melee Attacks . | . . . Impact . | . . . Slashing . | . . . Piercing . | . . . Sneak Attacks . | . . . Combat Hostiles . | . . . Follow-up Attacks . | . . . Damage Inflicted 1703 | . 470 1233 Guns 1703 | . 470 1233 Cannons . | . . . Explosions . | . . . Melee . | . . . Ramming . | . . . Kinetic 581 | . 235 346 Thermal 1122 | . 235 887 Explosive . | . . . Electromagnetic . | . . . Impact . | . . . Slashing . | . . . Piercing . | . . . Highest Corruption 1 | . . 1 Average Corruption 1 | . . 1 Corruption Purged . | . . . Corruption Blocked . | . . . Effects 1 | . . 1 Energy Discharges 1 | . . 1 Overload Shots . | . . . Overflow Damage . | . . . Projectiles . | . . . Explosions . | . . . Melee . | . . . Knockbacks . | . . . Impact . | . . . Kinetic . | . . . Secondary . | . . . Self-Inflicted Damage . | . . . Shots . | . . . Rammed . | . . . Targets Rammed . | . . . Kicked . | . . . Crushed . | . . . Highest Temperature 481 | . 481 285 Average Temperature 135 | . 233 77 Received Heat Transfer 804 | . 336 468 Effects 9 | . 9 . Shutdowns 3 | . 3 . Energy Bleed 2 | . 2 . Interference 4 | . 4 . Siege Activations . | . . . Martial Activations . | . . . Shielding Activations . | . . . Robots Disrupted . | . . . Combat Hostiles . | . . . Robots Corrupted . | . . . Combat Hostiles . | . . . Parts Fried . | . . . Impact Corruptions . | . . . Robots Melted . | . . . Combat Hostiles . | . . . Parts Melted 5 | . 2 3 Heat Transferred 3543 | . 925 2618 Parts Sabotaged . | . . . Parts Stolen . | . . . Parts Stripped . | . . . Power Chain Reactions . | . . . Alert | -11 -10 -9 ------- Run | Yrd Mat Mat Maximum Alert Level 1 | . . 1 Low Security (%) 85 | 100 100 75 Level 1 14 | . . 24 Level 2 . | . . . Level 3 . | . . . Level 4 . | . . . Level 5 . | . . . High Security . | . . . Max Security . | . . . Peak Influence 304 | . 70 304 Initial . | . . . Average 83 | . 15 130 Influence Increases 783 | . 147 636 Destroy 0b10 Robot/C 540 | . 100 440 Destroy 0b10 Robot/NC 10 | . 10 . Destroy Leader 124 | . 34 90 Successful Hack 3 | . 3 . Select Force Hacks 30 | . . 30 Destroy Structure 1 | . . 1 Lose Combat Pursuer 75 | . . 75 Influence Decreases 497 | . 147 350 Time Decay 327 | . 107 220 Lost Part 170 | . 40 130 Squads Dispatched 4 | . 1 3 Investigation 1 | . . 1 Extermination . | . . . Reinforcement 3 | . 1 2 Assault . | . . . Garrison . | . . . Intercept . | . . . Searches Triggered . | . . . Construction Impeded . | . . . Haulers Reinforced . | . . . Active Scanning Responses . | . . . Cargo Convoy Interrupts . | . . . Stealth | -11 -10 -9 --------- Run | Yrd Mat Mat Distress Signals 2 | . 1 1 Communications Jammed . | . . . Distress Signals . | . . . Times Spotted 38 | . 10 28 Peak Tracking Total 9 | . 5 9 Tactical Retreats 4 | . . 4 Traps | -11 -10 -9 ------- Run | Yrd Mat Mat Traps Triggered . | . . . Indirectly . | . . . Trap Hack Attempts . | . . . Triggered . | . . . Disarmed . | . . . Reprogrammed . | . . . Reused . | . . . Traps Extracted . | . . . Installed . | . . . Triggered . | . . . Machines | -11 -10 -9 ---------- Run | Yrd Mat Mat Machines Disabled . | . . . Max in Single Turn . | . . . Machines Repaired . | . . . Machines Dismantled . | . . . Machines Sabotaged . | . . . Overloaded Fab Kills . | . . . Hacking | -11 -10 -9 --------- Run | Yrd Mat Mat Machines Accessed 2 | . 1 1 Terminals . | . . . Fabricators . | . . . Repair Stations . | . . . Recycling Units 1 | . 1 . Scanalyzers 1 | . . 1 Garrison Access . | . . . Total Hacks 4 | . 3 1 Successful 2 | . 1 1 Failed 2 | . 2 . Catastrophic . | . . . Database Lockouts . | . . . Manual 6 | . 5 1 Terminals . | . . . Fabricators . | . . . Repair Stations . | . . . Recycling Units 3 | . 3 . Scanalyzers 1 | . . 1 Garrison Access . | . . . Terminal Hacks . | . . . Fabricator Hacks . | . . . Repair Station Hacks . | . . . Recycling Unit Hacks . | . . . Scanalyzer . | . . . Garrison Access Hacks . | . . . Unauthorized Hacks 2 | . 1 1 Terminals . | . . . Fabricators . | . . . Repair Stations . | . . . Recycling Units 1 | . 1 . Reject 1 | . 1 . Scanalyzers 1 | . . 1 Extract 1 | . . 1 Garrison Access . | . . . Data Cores Recovered . | . . . Used . | . . . Hacking Detections . | . . . Full Trace Events . | . . . Feedback Events . | . . . Feedback Blocked . | . . . Robot Schematics Acquired . | . . . Robots Built . | . . . Authchips . | . . . Time . | . . . Total Robot Build Rating . | . . . Part Schematics Acquired 3 | . . 3 Parts Built . | . . . Authchips . | . . . Time . | . . . Total Part Build Rating . | . . . Part Studies Acquired . | . . . Parts Repaired . | . . . Time . | . . . Parts Recycled . | . . . Recycled Matter . | . . . Retrieved Matter . | . . . Retrieved Components . | . . . Parts Scanalyzed . | . . . Part Schematics Acquired . | . . . Parts Damaged . | . . . Bothacking | -11 -10 -9 ------------ Run | Yrd Mat Mat Used RIF Installer . | . . . Robots Hacked . | . . . Non-combat . | . . . Combat . | . . . Robot Hacks Applied . | . . . Relay Couplers Released . | . . . Fabnet Peak Effective % . | . . . Robots Rewired . | . . . Allies Hacked . | . . . Hacks Repelled . | . . . Allies | -11 -10 -9 -------- Run | Yrd Mat Mat Total Allies . | . . . Largest Group . | . . . Highest-Rated Group . | . . . Highest-Rated Ally . | . . . Total Orders . | . . . Ally Attacks . | . . . Total Damage . | . . . Kills . | . . . Allies Corrupted . | . . . Allies Melted . | . . . Intel | -11 -10 -9 ------- Run | Yrd Mat Mat Active Infowar (turns) 601 | . 51 550 Optics 553 | . 51 502 Sensors 48 | . . 48 Robot Analysis Total . | . . . Derelict Logs Recovered . | . . . Drone Launches . | . . . Drone Recoveries . | . . . Exploration | -11 -10 -9 ------------- Run | Yrd Mat Mat Turns Passed 973 | 49 342 582 Spaces Moved 455 | 36 158 261 Core 29 | 19 6 4 Treads . | . . . Legs 426 | 17 152 257 Wheels . | . . . Hover . | . . . Flight . | . . . Fastest Speed 50 | 50 120 50 Average Speed 117 | 91 121 118 Slowest Speed 150 | 120 150 120 Overloaded Moves . | . . . Propulsion Burnouts . | . . . Robots Hopped . | . . . Potential Cave-ins . | . . . Cave-ins Triggered . | . . . Exploration Rate (%) 18 | 3 26 26 Regions Visited 2 Branch Regions . Pre-discovered Areas . | . . . Known Exits Taken 1 | . 1 . Unknown Exits Taken 1 | 1 . . Scrap Searched . | . . . Spaces Dug . | . . . Terrain Destroyed . | . . . Melee . | . . . Projectile . | . . . AOE . | . . . Terrain Rammed . | . . . Walls Destroyed . | . . . Machines Disabled . | . . . Actions | -11 -10 -9 --------- Run | Yrd Mat Mat Total 709 | 52 239 418 Wait 58 | 3 12 43 Move 453 | 35 157 261 Hop . | . . . Pick Up 26 | 8 8 10 Fast Attach 5 | . . 5 Attach 17 | 6 5 6 Detach . | . . . Swap 8 | . 1 7 Drop 10 | . . 10 Fire 132 | . 56 76 Melee . | . . . Ram . | . . . Kick . | . . . Crush . | . . . Escape Stasis . | . . . Rewire . | . . . Trap . | . . . Miscellaneous . | . . . Route ------- -11/Scrapyard -10/Materials (discovered 2 exits: *Mat / [*Min]) -9/Materials (discovered 2 exits: [*Mat] / *Min) History --------- Turn | Location | Event 13 | -11/Scrapyard | Discovered new exit (range 16) 50 | -11/Scrapyard | Entered Materials 216 | -10/Materials | Core integrity fell below 50% 260 | -10/Materials | Lost 4 parts (1p2n1w) 296 | -10/Materials | Discovered new exit (range 4) 306 | -10/Materials | Build established: Mutant 342 | -10/Materials | Discovered new exit (range 17) 389 | -10/Materials | Identified exit to Materials 392 | -10/Materials | Entered another Materials area 392 | -9/Materials | Evolved 2 slots: Propulsion x2 481 | -9/Materials | Discovered new exit (range 17) 603 | -9/Materials | Identified exit to Mines 781 | -9/Materials | Lost 3 parts (2n1w) 895 | -9/Materials | Discovered new exit (range 14) 934 | -9/Materials | Core integrity fell below 50% 960 | -9/Materials | Core integrity fell below 20% 974 | -9/Materials | Destroyed by Y-45 Defender with Beam Rifle Last Messages --------------- S-10 Pest destroyed. Hvy. Assault Rifle destroyed. R-06 Scavenger collects Lgt. Ion Engine. Imp. Ion Engine destroyed. Aluminum Leg destroyed. R-06 Scavenger collects Lgt. Ion Engine. Aluminum Leg destroyed. Sensor Array destroyed. G-34 Mercenary destroyed. Y-45 Defender suffers critical hit (Burn). System corrupted: Energy discharge (-25). Y-45 Defender suffers critical hit (Burn). Heat Sink melted. Y-45 Defender destroyed. G-34 Mercenary destroyed. Beam Rifle destroyed. Acquired Sml. Laser. Acquired Aluminum Leg. Critical hit (Burn: +37). Acquired Hvy. Assault Rifle. Map ----- +----------------------------------------------------+ | ?????????????????????????????? | | ?????????????????????????????? | | ?????????????????????????????? | | ?????????????????????????????? | | ?????????????????????????????? | | ?????????????????????????????? | | ?????????????????????????????? | | ??????????????????????????"??? | | ?????????????????????????"""?# | | ??????????????????????????"" # | | ??????????????????????????? # | | ???????????????????????????? + | | ?????????????????????????????# | | ?????????????????????????????# | | ?????????????????????????????? | | ?????????????????????????????? | | ?????????????????????????????? | | ?????????????????????????????? | | ?????????????????????????????? | | #########????????????????##### | | # #????????????????# | | # """ #??????????####### ! | | # """!=############ # | | # """%=# # | | # =![# + | | # @ %Ys # "" | | # %%#= ###### # "T | | # " # #????## ## "" | | # T" ## ##?????# ## | | # "" ## #??????# ###### | | # ## #??????# #????? | | ########## #??????# ###### | | ?????????# #??????# ## | | ?????????# #??????# ## | | ?????????# #?????? # | | ?????????# ?????? # | | ?????????+ ????? + | | ?????????# ???? # | | ?????????# ##????# # | | ?????????# #?????####### | | ?????????# < #???????????##### | | ?????????# #???????????????? | | ??????????###????????????????? | | ?????????????????????????????? | | ?????????????????????????????? | | ?????????????????????????????? | | ?????????????????????????????? | | ?????????????????????????????? | | ?????????????????????????????? | | ?????????????????????????????? | +----------------------------------------------------+ Best States ------------- Heat Dissipation 28 Energy Generation 12 Energy Capacity 265 Matter Stores 300 Matter Capacity 300 Sight Range 18 Robot Scan Range 14 Terrain Scan Density 10 Evasion (%) 55 Item Schematics ----------------- Huge Storage Unit | -9/Materials | Extracted Visual Processing Unit | -9/Materials | Extracted Imp. Aluminum Leg | -9/Materials | Extracted Robot Schematics ------------------ None Fabricated ------------ Nothing Repaired ---------- Nothing Studied --------- None Alien Tech Used ----------------- None Achievements -------------- None Challenges ------------ None Game ------ Seed SigixMetafiberModule Manual? 0 Play Time 00:13:03 Cumulative 23.7 hours Start 2025.10.27 @ 08:27:54 End 2025.10.27 @ 12:28:32 Sessions 4 Manual Loads 0 Difficulty Rogue Special Mode None Game No. 77 Rogue 77 Adventurer 0 Explorer 0 Win Type - Total 0 Types 0/0/0/0/0/0/0/0/0/0 Lore% 10 Gallery% 22 Achievement% 18 Wizard Run 0 Options --------- Layout 1 ASCII 0 Keyboard 0 Movement Mouse Keybinds 0 Fullscreen 2 Font 32/SmallcapsGlow Map View 50x35 Zoom Use 0% Tactical HUD 0 Map Filters NONE Filters NONE Steam 1 RUN: e4a5ae25-f0df-42c4-8d3e-ad1e7032aa66